bitfinex-derivatives/quotes_ETHF0:USTF0_20260117
["timestamp","ask_amount","ask_price","bid_price","bid_amount"]
[1768648141880,0.9453929,3296.6,3295.3,0.29194319]
[1768648142080,0.00367755,3296.7,3295.3,0.29194319]
[1768648142275,0.94539704,3296.6,3295.3,0.29194319]
[1768648142477,0.00367755,3296.7,3295.3,0.29194319]
[1768648142677,0.94532847,3296.6,3295.3,0.29194319]
[1768648142979,0.00367755,3296.7,3295.3,0.29194319]
[1768648143283,0.94532765,3296.6,3295.3,0.29194319]
[1768648143477,0.00367755,3296.7,3295.3,0.29194319]
[1768648143675,0.94526537,3296.6,3295.3,0.29194319]
[1768648143871,0.00367755,3296.7,3295.3,0.29194319]
[1768648144076,0.94526744,3296.6,3295.3,0.15179]
[1768648144279,0.14523417,3296.7,3295.3,0.15179]
[1768648144478,0.94521095,3296.6,3295.3,0.15179]
[1768648144677,0.14523417,3296.7,3295.3,0.15179]
[1768648144877,0.94521347,3296.6,3295.3,0.15179]
[1768648145175,0.14523417,3296.7,3295.3,0.15179]
[1768648145380,0.94516163,3296.6,3295.3,0.15179]
[1768648145569,0.14523417,3296.7,3295.3,0.15179]
[1768648145769,0.94516573,3296.6,3295.3,0.15179]
[1768648145977,0.14523417,3296.7,3295.3,0.15179]
[1768648146182,0.94516491,3296.6,3295.3,0.15179]
[1768648146384,0.14523417,3296.7,3295.3,0.15179]
[1768648146581,0.94511688,3296.6,3295.3,0.15179]
[1768648146783,0.14523417,3296.7,3295.3,0.15179]
[1768648146987,0.94511688,3296.6,3295.3,0.15179]
[1768648147186,0.14523417,3296.7,3295.3,0.15179]
[1768648147385,0.9450863,3296.6,3295.3,0.15179]
[1768648147684,0.14523417,3296.7,3295.3,0.15179]
[1768648147884,0.94508624,3296.6,3295.3,0.15179]
[1768648148186,0.14523417,3296.7,3295.3,0.15179]
[1768648148388,0.94505508,3296.6,3295.3,0.15179]
[1768648148590,0.14523417,3296.7,3295.3,0.15179]
[1768648148782,0.9450549,3296.6,3295.3,0.15179]
[1768648149087,0.14523417,3296.7,3295.3,0.15179]
[1768648149289,0.94505494,3296.6,3295.3,0.15179]
[1768648149488,0.14523417,3296.7,3295.3,0.15179]
[1768648149692,0.94502907,3296.6,3295.3,0.15179]
[1768648149884,0.14523417,3296.7,3295.3,0.15179]
[1768648150081,0.94502904,3296.6,3295.3,0.15179]
[1768648150389,0.14523417,3296.7,3295.3,0.15179]
[1768648155389,0.14523417,3296.7,3295.3,1.13483936]
[1768648155581,0.00367755,3296.7,3295.7,0.98304936]
[1768648160091,0.00367755,3296.7,3295.7,1.13482936]
[1768648160292,3.036,3297.4,3295.7,1.13482936]
[1768648160293,3.036,3297.4,3296.1,0.98304936]
[1768648160498,0.94530167,3297.3,3296.1,0.98304936]
[1768648160797,0.94530167,3297.2,3296.1,0.98304936]
[1768648160991,3.036,3297.4,3296.1,0.98304936]
[1768648161297,0.94530767,3297.3,3296.1,0.98632944]
[1768648161497,0.94530767,3297.2,3296.1,0.98632944]
[1768648161698,3.03880397,3297.4,3296.1,0.98632944]
[1768648161893,0.94519109,3297.3,3296.1,0.98632944]
[1768648162094,0.94519109,3297.2,3296.1,0.98632944]
[1768648162297,3.03880397,3297.4,3296.1,0.98632944]
[1768648162599,0.94513193,3297.3,3296.1,0.98632944]
[1768648162798,0.94513193,3297.2,3296.1,0.98632944]
[1768648162996,3.03880397,3297.4,3296.1,0.98632944]
[1768648163200,0.94513023,3297.3,3296.1,0.98632944]
[1768648163400,0.94513023,3297.2,3296.1,0.98632944]
[1768648163600,3.03880397,3297.4,3296.1,0.98632944]
[1768648163801,0.94511128,3297.3,3296.1,0.98632944]
[1768648163998,0.94511128,3297.2,3296.1,0.98632944]
[1768648164201,3.03880397,3297.4,3296.1,0.98632944]
[1768648164401,0.94513121,3297.3,3296.1,0.98632944]
[1768648164600,0.94513121,3297.2,3296.1,0.98632944]
[1768648164803,3.03880397,3297.4,3296.1,0.98632944]
[1768648165000,0.94513125,3297.3,3296.1,0.98632944]
[1768648165198,0.94513125,3297.2,3296.1,0.98632944]
[1768648165399,3.03880397,3297.4,3296.1,0.98632944]
[1768648165599,0.94500944,3297.3,3296.1,0.98632944]
[1768648165799,0.94500944,3297.2,3296.1,0.98632944]
[1768648166000,3.03880397,3297.4,3296.1,0.98632944]
[1768648166307,0.94500944,3297.3,3296.1,0.98632944]
[1768648166498,3.03880397,3297.4,3296.1,0.98632944]
[1768648166703,0.94492433,3297.3,3296.1,0.98632944]
[1768648167003,3.03880397,3297.4,3296.1,0.98632944]
[1768648167405,0.00280397,3297.4,3296.1,0.98632944]
[1768648169505,0.00280397,3297.4,3296.4,0.98227672]
[1768648171600,0.00280397,3297.4,3296.6,0.98227672]
[1768648171907,0.00280397,3297.4,3296.8,0.98227672]
[1768648178002,0.13644634,3298.3,3297.2,0.98227672]
[1768648178207,0.13644634,3298.3,3297.7,0.98227672]
[1768648178406,0.13644634,3298.3,3297.5,0.98227672]
[1768648179002,0.14019467,3298.3,3297.5,0.98227672]
[1768648179408,0.00374833,3298.3,3297.5,0.98227672]
[1768648181705,0.00374833,3298.3,3297.7,0.98227672]
[1768648182710,0.00374833,3298.3,3297.9,0.98227672]
[1768648182907,1.693,3298.6,3297.9,0.98227672]
[1768648183113,3.035,3299.0,3298.2,0.98227672]
[1768648183509,0.13644634,3299.2,3298.2,0.98227672]
[1768648183912,0.13931873,3299.2,3298.4,0.98227672]
[1768648184309,0.13644634,3299.6,3298.8,0.98227672]
[1768648185315,0.13937715,3299.6,3298.8,0.98440683]
[1768648186218,0.00293081,3299.6,3298.8,0.98440683]
[1768648188118,0.00293081,3299.6,3298.8,0.00213011]
[1768648209438,0.93560369,3299.5,3298.8,0.00213011]
[1768648209736,0.00293081,3299.6,3298.9,0.98227672]
[1768648210240,0.9360831,3299.5,3298.9,0.98227672]
[1768648210532,0.00293081,3299.6,3298.9,0.98227672]
[1768648210723,0.93612923,3299.5,3298.9,0.98227672]
[1768648210922,0.00293081,3299.6,3298.9,0.98227672]
[1768648211126,0.93612761,3299.5,3298.9,0.98227672]
[1768648211342,0.93612761,3299.4,3298.9,0.98227672]
[1768648211522,0.00293081,3299.6,3298.9,0.98227672]
[1768648211732,0.93682343,3299.5,3298.9,0.98227672]
[1768648212035,0.93682343,3299.4,3298.9,0.98227672]
[1768648212224,0.93776672,3299.3,3298.9,0.98227672]
[1768648212428,0.00293081,3299.6,3298.9,0.98227672]
[1768648212638,0.9377905,3299.5,3298.9,0.98227672]
[1768648212830,0.9377905,3299.4,3298.9,0.98227672]
[1768648213131,0.9377905,3299.3,3298.9,0.98227672]
[1768648213338,0.9377905,3299.2,3298.9,0.98227672]
[1768648213527,0.00293081,3299.6,3298.9,0.98227672]
[1768648213728,0.93872155,3299.5,3298.9,0.98227672]
[1768648213928,0.93872155,3299.4,3298.9,0.98227672]
[1768648214129,0.93872155,3299.3,3298.9,0.98227672]
[1768648214336,0.93872155,3299.2,3298.9,0.98227672]
[1768648214539,0.00293081,3299.6,3298.9,0.98227672]
[1768648214741,0.93911573,3299.5,3298.9,0.98227672]
[1768648214945,0.93911573,3299.4,3298.9,0.98227672]
[1768648215130,0.93911573,3299.3,3298.9,0.98227672]
[1768648215331,0.93911573,3299.2,3298.9,0.98227672]
[1768648215646,0.00293081,3299.6,3298.9,0.98227672]
[1768648215940,0.93913563,3299.5,3298.9,0.98227672]
[1768648216142,0.93913563,3299.4,3298.9,0.98227672]
[1768648216444,0.00293081,3299.6,3298.9,0.98227672]
[1768648216633,0.93917346,3299.5,3298.9,0.98227672]
[1768648216834,0.93917346,3299.4,3298.9,0.98227672]
[1768648217136,0.00293081,3299.6,3298.9,0.98227672]
[1768648217333,0.93917361,3299.5,3298.9,0.98227672]
[1768648217536,0.93917361,3299.4,3298.9,0.98227672]
[1768648217739,0.00293081,3299.6,3298.9,0.98227672]
[1768648217939,0.93948934,3299.5,3298.9,0.98227672]
[1768648218142,0.93948934,3299.4,3298.9,0.98227672]
[1768648218342,0.00293081,3299.6,3298.9,0.98227672]
[1768648218544,0.93949334,3299.5,3298.9,0.98227672]
[1768648218747,0.93949334,3299.4,3298.9,0.98227672]
[1768648219050,0.00293081,3299.6,3298.9,0.98227672]
[1768648219347,0.93949257,3299.5,3298.9,0.98227672]
[1768648219532,0.00293081,3299.6,3299.1,0.98227672]
[1768648221634,0.00293081,3299.6,3298.9,0.98227672]
[1768648228051,0.00293081,3299.6,3299.1,0.98227672]
[1768648228259,1.692,3300.3,3299.3,0.98227672]
[1768648228556,0.25613664,3300.2,3299.5,0.98227672]
[1768648228855,1.692,3300.3,3299.5,0.98227672]
[1768648229057,0.25400241,3300.2,3299.5,0.98227672]
[1768648229249,1.69438081,3300.3,3299.5,0.98227672]
[1768648229455,1.69438081,3300.3,3299.1,0.13968474]
[1768648231556,0.93089809,3300.2,3299.1,0.13968474]
[1768648231760,0.93089809,3300.1,3299.1,0.13968474]
[1768648232061,1.69438081,3300.3,3299.1,0.13968474]
[1768648232251,0.93087741,3300.2,3299.1,0.13968474]
[1768648232557,0.93087741,3300.1,3299.1,0.13968474]
[1768648232761,1.69438081,3300.3,3299.1,0.13968474]
[1768648232958,0.9307166,3300.2,3299.1,0.13968474]
[1768648233158,1.69438081,3300.3,3299.1,0.13968474]
[1768648233361,0.93069556,3300.2,3299.1,0.13968474]
[1768648233553,1.69438081,3300.3,3299.1,0.13968474]
[1768648233753,0.93051077,3300.2,3299.1,0.13968474]
[1768648233956,1.69438081,3300.3,3299.1,0.13968474]
[1768648234156,0.93051077,3300.2,3299.1,0.13968474]
[1768648234353,2.62828076,3301.0,3299.1,0.13968474]
[1768648234557,2.88143226,3301.4,3299.5,0.13910289]
[1768648234558,0.93036142,3300.9,3299.5,0.13910289]
[1768648234757,0.93036142,3300.8,3299.5,0.13910289]
[1768648235059,0.13539045,3301.3,3299.5,40.93910289]
[1768648235262,1.06559971,3301.2,3299.5,40.93910289]
[1768648235463,1.06559971,3301.1,3299.5,40.93910289]
[1768648235658,0.13539045,3300.9,3299.5,40.8]
[1768648236463,0.13539045,3300.9,3299.3,0.15161]
[1768648237163,0.13539045,3300.9,3299.4,40.8]
[1768648237365,0.00391254,3301.2,3299.5,0.29070289]
[1768648237575,0.92890897,3301.1,3299.6,0.13910289]
[1768648237865,0.92890897,3301.0,3299.6,0.13910289]
[1768648238064,0.13930299,3301.2,3299.6,0.13910289]
[1768648238254,0.92890342,3301.1,3299.6,0.13910289]
[1768648238454,0.13930299,3301.2,3299.6,0.13910289]
[1768648238663,0.92859408,3301.1,3299.6,0.13910289]
[1768648238862,0.13930299,3301.2,3299.6,0.13910289]
[1768648239063,0.9285944,3301.1,3299.6,0.13910289]
[1768648239265,0.13930299,3301.2,3299.6,0.13910289]
[1768648239466,0.92834346,3301.1,3299.6,0.13910289]
[1768648239765,0.13930299,3301.2,3299.6,0.13910289]
[1768648239972,0.92834345,3301.1,3299.6,0.13910289]
[1768648240265,0.13930299,3301.2,3299.6,0.13910289]
[1768648240450,0.92813713,3301.1,3299.6,0.13910289]
[1768648240655,0.13930299,3301.2,3299.6,0.13910289]
[1768648240856,0.92813715,3301.1,3299.6,0.13910289]
[1768648241151,0.13930299,3301.2,3299.6,0.13910289]
[1768648241355,0.92813713,3301.1,3299.6,0.13910289]
[1768648241558,0.13930299,3301.2,3299.6,0.13910289]
[1768648241767,0.92797009,3301.1,3299.6,0.13910289]
[1768648241965,0.13930299,3301.2,3299.6,0.13910289]
[1768648242164,0.92797008,3301.1,3299.6,0.13910289]
[1768648242464,0.13930299,3301.2,3299.6,0.13910289]
[1768648242666,0.92783686,3301.1,3299.6,0.13910289]
[1768648242860,0.13930299,3301.2,3299.6,0.13910289]
[1768648243056,0.92783686,3301.1,3299.6,0.13910289]
[1768648243266,0.13930299,3301.2,3299.6,0.13910289]
[1768648243452,0.92773352,3301.1,3299.6,0.13910289]
[1768648243652,0.13930299,3301.2,3299.6,0.13910289]
[1768648243852,0.92773353,3301.1,3299.6,0.13910289]
[1768648244160,0.13930299,3301.2,3299.6,0.13910289]
[1768648244357,0.92773369,3301.1,3299.6,0.13910289]
[1768648244557,0.13930299,3301.2,3299.6,0.13910289]
[1768648244867,0.92766035,3301.1,3299.6,0.13910289]
[1768648245066,0.13930299,3301.2,3299.6,0.13910289]
[1768648245269,0.9276604,3301.1,3299.6,0.13910289]
[1768648245454,0.92761294,3301.0,3299.6,0.13910289]
[1768648245656,0.92761294,3300.9,3299.6,0.13910289]
[1768648245857,0.13930299,3301.2,3299.6,0.13910289]
[1768648246060,0.92761279,3301.1,3299.6,0.13910289]
[1768648246271,0.92761279,3301.0,3299.6,0.13910289]
[1768648246460,0.13930299,3301.2,3299.6,0.13910289]
[1768648246660,0.92758852,3301.1,3299.6,0.13910289]
[1768648246863,0.92758852,3301.0,3299.6,0.13910289]
[1768648247062,0.13930299,3301.2,3299.6,0.13910289]
[1768648247265,0.92758852,3301.1,3299.6,0.13910289]
[1768648247469,0.92758852,3301.0,3299.6,0.13910289]
[1768648247670,0.13930299,3301.2,3299.6,0.13910289]
[1768648247869,0.92759082,3301.1,3299.6,0.13910289]
[1768648248070,0.92759082,3301.0,3299.6,0.13910289]
[1768648248369,0.92762446,3300.9,3299.6,0.13910289]
[1768648248569,0.13930299,3301.2,3299.6,0.13910289]
[1768648248771,0.92761907,3301.1,3299.6,0.13910289]
[1768648248970,0.92761907,3301.0,3299.6,0.13910289]
[1768648249158,0.92761907,3300.9,3299.6,0.13910289]
[1768648249361,0.13930299,3301.2,3299.6,0.13910289]
[1768648249563,0.92767113,3301.1,3299.6,0.13910289]
[1768648249757,0.92767113,3301.0,3299.6,0.13910289]
[1768648249970,0.92767113,3300.9,3299.6,0.13910289]
[1768648250272,0.13930299,3301.2,3299.6,0.13910289]
[1768648250472,1.06313861,3301.1,3299.6,0.13910289]
[1768648250671,0.92774816,3301.0,3299.6,0.13910289]
[1768648250870,0.92774816,3300.9,3299.6,0.13910289]
[1768648251069,0.13539045,3301.1,3299.6,0.13910289]
[1768648251374,0.92774815,3301.0,3299.6,0.13910289]
[1768648251574,0.92774815,3300.9,3299.6,0.13910289]
[1768648251774,0.13539045,3301.1,3299.6,0.13910289]
[1768648251965,0.92785263,3301.0,3299.6,0.13910289]
[1768648252168,0.92785263,3300.9,3299.6,0.13910289]
[1768648252365,0.13539045,3301.1,3299.6,0.13910289]
[1768648252577,0.92798641,3301.0,3299.6,40.93910289]
[1768648252778,0.92798641,3300.9,3299.6,40.8]
[1768648252976,0.13539045,3301.1,3299.6,40.8]
[1768648253277,1.06881569,3301.0,3299.6,40.8]
[1768648253576,0.92798713,3300.9,3299.6,40.8]
[1768648255576,0.14082856,3301.0,3299.6,40.8]
[1768648258372,0.92958128,3300.9,3299.6,40.8]
[1768648258669,0.14082856,3301.0,3299.6,40.8]
[1768648258869,0.92958127,3300.9,3299.6,40.8]
[1768648259074,0.14082856,3301.0,3299.6,40.8]
[1768648259269,0.92958145,3300.9,3299.6,40.8]
[1768648259470,0.14082856,3301.0,3299.6,40.8]
[1768648259669,0.92953659,3300.9,3299.6,40.8]
[1768648259877,0.14082856,3301.0,3299.6,40.8]
[1768648260077,0.9295366,3300.9,3299.6,40.8]
[1768648260377,0.14082856,3301.0,3299.6,40.8]
[1768648260582,0.92972707,3300.9,3299.6,40.8]
[1768648260876,0.14082856,3301.0,3299.6,40.8]
[1768648261076,0.92972707,3300.9,3299.6,40.8]
[1768648261278,0.14082856,3301.0,3299.6,40.8]
[1768648261479,0.93000205,3300.9,3299.6,40.8]
[1768648261679,0.14082856,3301.0,3299.6,40.8]
[1768648261880,0.93000206,3300.9,3299.6,40.8]
[1768648262070,0.14082856,3301.0,3299.6,40.8]
[1768648262271,0.93002775,3300.9,3299.6,40.8]
[1768648262466,0.93002775,3300.9,3299.5,3.7236]
[1768648262467,0.93002775,3300.8,3299.5,3.7236]
[1768648262679,0.14082856,3301.0,3299.5,3.7236]
[1768648262881,0.93033265,3300.9,3299.5,44.5236]
[1768648263076,0.93033265,3300.8,3299.5,44.5236]
[1768648263271,0.14082856,3301.0,3299.5,44.5236]
[1768648263472,0.93068563,3300.9,3299.5,44.5236]
[1768648263781,0.93068563,3300.8,3299.5,44.5236]
[1768648264081,0.14082856,3301.0,3299.5,44.5236]
[1768648264272,0.93070123,3300.9,3299.5,44.5236]
[1768648264468,0.93070123,3300.8,3299.5,44.5236]
[1768648264673,0.93070123,3300.7,3299.5,44.5236]
[1768648264873,0.14082856,3301.0,3299.5,44.5236]
[1768648265077,0.93142899,3300.9,3299.5,44.5236]
[1768648265267,0.93142899,3300.8,3299.5,44.5236]
[1768648265472,0.93142899,3300.7,3299.5,44.5236]
[1768648265673,0.14082856,3301.0,3299.5,44.5236]
[1768648265974,0.93142931,3300.9,3299.5,44.5236]
[1768648266175,0.93142931,3300.8,3299.5,44.5236]
[1768648266375,0.93142931,3300.7,3299.5,44.5236]
[1768648266576,0.14082856,3301.0,3299.5,44.5236]
[1768648266778,0.93148093,3300.9,3299.5,44.5236]
[1768648267077,0.93148093,3300.8,3299.5,44.5236]
[1768648267273,0.93148093,3300.7,3299.5,44.5236]
[1768648267474,0.14082856,3301.0,3299.5,44.5236]
[1768648267683,0.93159108,3300.9,3299.5,44.5236]
[1768648267883,0.93159108,3300.8,3299.5,44.5236]
[1768648268082,0.93159108,3300.7,3299.5,44.5236]
[1768648268283,0.14082856,3301.0,3299.5,44.5236]
[1768648268580,0.93159181,3300.9,3299.5,44.5236]
[1768648268877,0.93159181,3300.8,3299.5,44.5236]
[1768648269077,0.93159181,3300.7,3299.5,44.5236]
[1768648269279,0.14082856,3301.0,3299.5,44.5236]
[1768648269472,0.93159237,3300.9,3299.5,44.5236]
[1768648269674,0.93159237,3300.8,3299.5,44.5236]
[1768648269971,0.93159237,3300.7,3299.5,44.5236]
[1768648270171,0.14082856,3301.0,3299.5,44.5236]
[1768648270381,0.93159256,3300.9,3299.5,44.5236]
[1768648270583,0.93159256,3300.8,3299.5,44.5236]
[1768648270781,0.93159256,3300.7,3299.5,44.5236]
[1768648270980,0.14082856,3301.0,3299.5,44.5236]
[1768648271178,0.93159331,3300.9,3299.5,44.5236]
[1768648271480,0.93159331,3300.8,3299.5,44.5236]
[1768648271679,0.93159331,3300.7,3299.5,44.5236]
[1768648271878,0.14082856,3301.0,3299.5,44.5236]
[1768648272079,0.93159458,3300.9,3299.5,44.5236]
[1768648272384,0.14082856,3301.0,3299.5,44.5236]
[1768648272385,0.93159458,3300.8,3299.5,44.5236]
[1768648272588,0.93159458,3300.7,3299.5,44.5236]
[1768648272785,0.14082856,3301.0,3299.5,44.5236]
[1768648272980,0.93159582,3300.9,3299.5,44.5236]
[1768648273279,0.93159582,3300.8,3299.5,44.5236]
[1768648273489,0.93159746,3300.7,3299.5,44.5236]
[1768648273681,0.14082856,3301.0,3299.5,44.5236]
[1768648273882,0.93159746,3300.9,3299.5,44.5236]
[1768648274181,0.93159746,3300.8,3299.5,44.5236]
[1768648274382,0.93159746,3300.7,3299.5,44.5236]
[1768648274583,0.14082856,3301.0,3299.5,44.6627538]
[1768648274883,0.93159776,3300.9,3299.5,44.6627538]
[1768648275090,0.93159776,3300.8,3299.5,44.6627538]
[1768648275287,0.93159776,3300.7,3299.5,44.6627538]
[1768648275487,0.14082856,3301.0,3299.5,44.6627538]
[1768648275689,0.93159831,3300.9,3299.5,44.6627538]
[1768648275887,0.14082856,3301.0,3299.5,44.6627538]
[1768648275888,0.93159831,3300.8,3299.5,44.6627538]
[1768648276089,0.93159831,3300.7,3299.5,44.6627538]
[1768648276289,0.14082856,3301.0,3299.5,44.6627538]
[1768648276487,0.93160092,3300.9,3299.5,44.6627538]
[1768648276682,0.93160092,3300.8,3299.5,44.6627538]
[1768648276884,0.93160092,3300.7,3299.5,44.6627538]
[1768648277084,0.14082856,3301.0,3299.5,44.6627538]
[1768648277290,0.93160126,3300.9,3299.5,44.6627538]
[1768648277495,0.93160126,3300.8,3299.5,44.6627538]
[1768648277690,0.93160126,3300.7,3299.5,44.6627538]
[1768648277892,0.14082856,3301.0,3299.5,44.6627538]
[1768648278190,0.93160395,3300.9,3299.5,44.6627538]
[1768648278391,0.93160395,3300.8,3299.5,44.6627538]
[1768648278582,0.93160395,3300.7,3299.5,44.6627538]
[1768648278783,0.14082856,3301.0,3299.5,44.6627538]
[1768648278995,0.93160671,3300.9,3299.5,44.6627538]
[1768648279197,1.18365577,3300.8,3299.5,44.6627538]
[1768648279500,0.93160671,3300.7,3299.5,44.6627538]
[1768648279694,0.14082856,3301.0,3299.5,44.6627538]
[1768648279893,1.18365937,3300.9,3299.5,44.6627538]
[1768648280192,1.18365937,3300.8,3299.5,44.6627538]
[1768648280491,0.93160957,3300.7,3299.5,44.6627538]
[1768648280690,0.14082856,3301.0,3299.5,44.6627538]
[1768648280898,1.18366312,3300.9,3299.5,44.6627538]
[1768648281089,0.93161257,3300.8,3299.5,44.6627538]
[1768648281295,0.93161257,3300.7,3299.5,44.6627538]
[1768648281493,0.14082856,3301.0,3299.5,44.6627538]
[1768648281792,1.18366858,3300.9,3299.5,44.6627538]
[1768648281992,1.18366858,3300.8,3299.5,44.6627538]
[1768648282192,0.93161694,3300.7,3299.5,44.6627538]
[1768648282388,0.14082856,3301.0,3299.5,44.6627538]
[1768648282581,1.18367433,3300.9,3299.5,44.6627538]
[1768648282787,1.18367433,3300.8,3299.5,44.6627538]
[1768648282987,0.93162163,3300.7,3299.5,44.6627538]
[1768648283183,0.14082856,3301.0,3299.5,44.6627538]
[1768648283388,1.1836737,3300.9,3299.5,44.6627538]
[1768648283591,1.1836737,3300.8,3299.5,44.6627538]
[1768648283792,0.14082856,3301.0,3299.5,44.6627538]
[1768648283793,0.931621,3300.7,3299.5,44.6627538]
[1768648283991,0.14082856,3301.0,3299.5,44.6627538]
[1768648284291,1.18367343,3300.9,3299.5,44.6627538]
[1768648284487,1.18367343,3300.8,3299.5,44.6627538]
[1768648284691,0.9316209,3300.7,3299.5,44.6627538]
[1768648284902,0.14082856,3301.0,3299.5,44.6627538]
[1768648285101,1.18367236,3300.9,3299.5,3.8627538]
[1768648285393,1.18367236,3300.8,3299.5,3.8627538]
[1768648285599,1.18368534,3300.7,3299.5,3.8627538]
[1768648285800,0.93162001,3300.6,3299.5,3.8627538]
[1768648285995,0.14082856,3301.0,3299.5,3.8627538]
[1768648286193,1.18372015,3300.9,3299.5,3.8627538]
[1768648286390,1.3154257,3300.8,3299.1,0.13791719]
[1768648286598,1.18372015,3300.7,3299.1,1.55591719]
[1768648286797,1.18372015,3300.6,3299.1,1.55591719]
[1768648286997,1.18372015,3300.5,3299.1,1.55591719]
[1768648287194,0.13170555,3300.8,3299.1,1.55591719]
[1768648287399,1.18556461,3300.7,3299.1,1.55591719]
[1768648287598,1.18556461,3300.6,3299.1,1.55591719]
[1768648287794,1.18556461,3300.5,3299.1,1.55591719]
[1768648287994,0.93128134,3300.4,3299.1,1.55591719]
[1768648288195,0.13170555,3300.8,3299.1,1.55591719]
[1768648288395,1.18527707,3300.7,3299.1,1.55591719]
[1768648288600,1.18527707,3300.6,3299.1,1.55591719]
[1768648288802,0.93109055,3300.5,3299.1,1.55591719]
[1768648289004,0.13170555,3300.8,3299.1,1.55591719]
[1768648289191,0.9310806,3300.7,3299.1,1.55591719]
[1768648289395,0.9310806,3300.6,3299.1,1.55591719]
[1768648289695,0.9310806,3300.5,3299.1,1.55591719]
[1768648290003,0.13170555,3300.8,3299.1,1.55591719]
[1768648290206,0.92974471,3300.7,3299.1,1.55591719]
[1768648290400,0.92974471,3300.6,3299.1,1.55591719]
[1768648290601,0.92974471,3300.5,3299.1,1.55591719]
[1768648290797,0.13170555,3300.8,3299.1,1.55591719]
[1768648291095,0.92965038,3300.7,3299.1,1.55591719]
[1768648291297,0.98063741,3300.5,3299.2,0.98063741]
[1768648291704,0.98063741,3300.5,3299.1,2.5365546]
[1768648301211,0.98063741,3300.5,3299.1,1.55591719]
[1768648301412,0.98063741,3300.5,3299.2,0.98063741]
[1768648304814,0.98063741,3300.5,3299.1,2.5365546]
[1768648305015,0.92920266,3300.4,3299.1,2.5365546]
[1768648305214,0.98063741,3300.5,3299.1,2.5365546]
[1768648308016,0.98063741,3300.5,3299.1,1.55591719]
[1768648308211,0.13170555,3300.8,3299.1,2.5365546]
[1768648308417,0.98063741,3300.5,3299.1,2.5365546]
[1768648308618,0.92931683,3300.4,3299.1,2.5365546]
[1768648308816,0.98063741,3300.5,3299.1,2.5365546]
[1768648309018,0.92930974,3300.4,3299.1,2.5365546]
[1768648309217,0.98063741,3300.5,3299.1,2.5365546]
[1768648309417,0.92933789,3300.4,3299.1,2.5365546]
[1768648309618,0.98063741,3300.5,3299.1,2.5365546]
[1768648309806,0.92933789,3300.4,3299.1,2.5365546]
[1768648310012,0.98063741,3300.5,3299.1,2.5365546]
[1768648310312,0.92933789,3300.4,3299.1,2.5365546]
[1768648310513,0.98063741,3300.5,3299.1,2.5365546]
[1768648310715,0.92937929,3300.4,3299.1,2.5365546]
[1768648310912,0.98063741,3300.5,3299.1,2.5365546]
[1768648311217,0.92937929,3300.4,3299.1,2.5365546]
[1768648311418,0.98063741,3300.5,3299.1,2.5365546]
[1768648311618,0.92943642,3300.4,3299.1,2.5365546]
[1768648311821,0.98063741,3300.5,3299.1,2.5365546]
[1768648312120,0.9294364,3300.4,3299.1,2.5365546]
[1768648312321,0.98063741,3300.5,3299.1,2.5365546]
[1768648312518,0.92951167,3300.4,3299.1,2.5365546]
[1768648312716,0.98063741,3300.5,3299.1,2.5365546]
[1768648312915,0.92951167,3300.4,3299.1,2.5365546]
[1768648313119,0.98063741,3300.5,3299.1,2.5365546]
[1768648313327,0.9296095,3300.4,3299.1,2.5365546]
[1768648313526,0.98063741,3300.5,3299.1,2.5365546]
[1768648313731,0.9296095,3300.4,3299.1,2.5365546]
[1768648313928,0.98063741,3300.5,3299.1,2.5365546]
[1768648314117,0.9296095,3300.4,3299.1,2.5365546]
[1768648314324,0.98063741,3300.5,3299.1,2.5365546]
[1768648314523,0.92973781,3300.4,3299.3,0.98063741]
[1768648314723,0.98063741,3300.7,3299.3,0.98063741]
[1768648314928,1.18382879,3300.6,3299.3,0.98063741]
[1768648315230,0.92973777,3300.5,3299.3,0.98063741]
[1768648315430,0.92973777,3300.4,3299.3,0.98063741]
[1768648315628,0.98063741,3300.7,3299.3,0.98063741]
[1768648315830,1.18405603,3300.6,3299.3,0.98063741]
[1768648316027,0.92991541,3300.5,3299.3,0.98063741]
[1768648316225,0.92991541,3300.4,3299.3,0.98063741]
[1768648316425,0.92991541,3300.3,3299.3,0.98063741]
[1768648316635,0.98063741,3300.7,3299.3,0.98063741]
[1768648316837,1.18429408,3300.6,3299.3,0.98063741]
[1768648317025,0.93010117,3300.5,3299.3,0.98063741]
[1768648317329,0.93010117,3300.4,3299.3,0.98063741]
[1768648317627,0.93010117,3300.3,3299.3,0.98063741]
[1768648317829,0.98063741,3300.7,3299.3,0.98063741]
[1768648318031,1.18429778,3300.6,3299.3,0.98063741]
[1768648318337,0.93010384,3300.5,3299.3,0.98063741]
[1768648318537,0.93010384,3300.4,3299.3,0.98063741]
[1768648318833,0.93010384,3300.3,3299.3,0.98063741]
[1768648319027,0.98063741,3300.7,3299.3,0.98063741]
[1768648319227,1.18429339,3300.6,3299.3,0.98063741]
[1768648319429,0.93010028,3300.5,3299.3,0.98063741]
[1768648319634,0.93010028,3300.4,3299.3,0.98063741]
[1768648319936,0.93010028,3300.3,3299.3,0.98063741]
[1768648320230,3.03591254,3301.2,3299.1,1.55591719]
[1768648320231,0.13750697,3301.2,3300.0,0.98063741]
[1768648320433,1.18396227,3301.1,3300.0,0.98063741]
[1768648320635,1.18396227,3301.0,3300.0,0.98063741]
[1768648320832,1.11814438,3301.2,3300.0,0.98063741]
[1768648320833,0.92979244,3300.9,3300.0,0.98063741]
[1768648321039,1.11814438,3301.2,3300.0,0.98063741]
[1768648321040,0.92979244,3300.8,3300.0,0.98063741]
[1768648321234,1.11814438,3301.2,3300.0,0.98063741]
[1768648321235,0.92979244,3300.7,3300.0,0.98063741]
[1768648321429,1.11814438,3301.2,3300.0,0.98063741]
[1768648321629,1.18360896,3301.1,3300.0,0.98063741]
[1768648321937,1.18360896,3301.0,3300.0,0.98063741]
[1768648322137,0.92951842,3300.9,3300.0,0.98063741]
[1768648322339,0.92951842,3300.8,3300.0,0.98063741]
[1768648322541,1.11814438,3301.2,3300.0,0.98063741]
[1768648322840,1.18339158,3301.1,3299.8,0.98063741]
[1768648323040,1.18339158,3301.0,3299.8,0.98063741]
[1768648323235,0.92934873,3300.9,3299.8,0.98063741]
[1768648323538,0.92934873,3300.8,3299.8,0.98063741]
[1768648323740,1.11814438,3301.2,3299.8,0.98063741]
[1768648324038,1.18322104,3301.1,3299.8,0.98063741]
[1768648324233,0.92921551,3301.0,3299.8,0.98063741]
[1768648324438,0.92921551,3300.9,3299.8,0.98063741]
[1768648324742,0.92921551,3300.8,3299.8,0.98063741]
[1768648325036,0.98063741,3301.1,3299.8,0.98063741]
[1768648325235,0.92910635,3301.0,3299.8,0.98063741]
[1768648325440,0.92910635,3300.9,3299.8,0.98063741]
[1768648325641,0.92910635,3300.8,3299.8,0.98063741]
[1768648325842,0.98063741,3301.1,3299.8,0.98063741]
[1768648326142,0.92901329,3301.0,3299.8,0.98063741]
[1768648326341,0.92901329,3300.9,3299.8,0.98063741]
[1768648326537,0.92901329,3300.8,3299.8,0.98063741]